bitfinex/quotes_SOLUSD_20240913
["timestamp","ask_amount","ask_price","bid_price","bid_amount"]
[1726241888280,7.66071658,136.28,136.22,0.142476]
[1726241888594,50.0,136.33,136.25,7.339]
[1726241888765,7.66168509,136.28,136.26,7.3388]
[1726241888964,71.8534,136.35,136.25,18.3474]
[1726241889193,7.3346,136.34,136.26,7.3388]
[1726241889389,7.66284917,136.29,136.25,25.6867]
[1726241889565,57.3353,136.33,136.25,18.3474]
[1726241889766,1.28038441,136.31,136.25,18.3474]
[1726241889965,7.66309578,136.28,136.25,25.6865]
[1726241890183,1.28038441,136.31,136.25,25.6865]
[1726241890385,7.66296767,136.3,136.25,25.6865]
[1726241890590,7.66296767,136.3,136.22,0.142476]
[1726241890591,0.25098,136.29,136.22,0.142476]
[1726241890776,20.0,136.29,136.22,0.142476]
[1726241890976,7.66296767,136.3,136.23,15.1286]
[1726241891178,7.66296767,136.3,136.28,7.3373]
[1726241891383,7.66296767,136.3,136.23,87.85405311]
[1726241891384,24.79937934,136.38,136.31,7.3361]
[1726241891579,1.28002236,136.37,136.28,15.1286]
[1726241891780,7.66445081,136.36,136.29,0.12549]
[1726241892089,1.27965346,136.4,136.29,0.25098]
[1726241892289,7.66320787,136.37,136.34,18.3364]
[1726241892480,7.66320787,136.37,136.33,7.3346]
[1726241892670,1.27965346,136.4,136.33,7.3346]
[1726241892995,7.66335954,136.37,136.33,7.3346]
[1726241893201,21.27965346,136.4,136.33,7.3346]
[1726241893567,7.66342941,136.37,136.33,7.3346]
[1726241893797,21.27965346,136.4,136.33,7.3346]
[1726241893975,1.27965346,136.4,136.31,18.3403]
[1726241894287,7.66334214,136.37,136.31,18.3403]
[1726241894483,21.27965346,136.4,136.33,7.335]
[1726241894795,7.66311229,136.37,136.34,7.3345]
[1726241895097,28.61105346,136.4,136.32,7.3356]
[1726241895273,7.66566883,136.36,136.3,18.3413]
[1726241895677,21.27965346,136.4,136.34,7.3345]
[1726241895880,7.663385,136.37,136.33,18.3377]
[1726241896293,0.25098,136.39,136.33,18.3377]
[1726241896505,7.66350266,136.36,136.31,7.3361]
[1726241896700,0.12549,136.39,136.32,7.3356]
[1726241897004,0.25098,136.39,136.33,7.335]
[1726241897205,20.0,136.37,136.32,7.3355]
[1726241897589,7.66380266,136.38,136.35,7.3335]
[1726241897986,7.66380266,136.38,136.33,18.3369]
[1726241898283,7.66380266,136.38,136.33,25.6719]
[1726241898483,7.66380266,136.38,136.33,18.3369]
[1726241898685,7.66380266,136.38,136.33,25.672]
[1726241899614,7.66380266,136.38,136.35,7.3339]
[1726241899806,7.66380266,136.38,136.37,7.3329]
[1726241900011,6.5257718,136.46,136.39,7.3314]
[1726241900220,7.67076763,136.44,136.38,25.6624]
[1726241900630,7.67076763,136.44,136.35,18.3349]
[1726241900814,15.00006763,136.44,136.36,7.333]
[1726241901136,7.67076763,136.44,136.38,7.3323]
[1726241901309,7.67076763,136.44,136.37,18.3315]
[1726241901310,7.67076763,136.44,136.37,25.6643]
[1726241901626,7.67076763,136.44,136.41,7.3308]
[1726241901926,30.0,136.42,136.41,7.3308]
[1726241902237,0.3601718,136.46,136.42,7.3301]
[1726241902528,0.3601718,136.46,136.37,18.3317]
[1726241902529,8.03201435,136.46,136.37,18.3317]
[1726241902702,7.3288,136.45,136.37,18.3317]
[1726241902897,15.36021435,136.46,136.38,7.3323]
[1726241903104,15.36021435,136.46,136.39,7.3317]
[1726241903498,20.0,136.45,136.39,7.3317]
[1726241903903,20.0,136.45,136.4,7.3312]
[1726241904334,8.03201435,136.46,136.39,18.3291]
[1726241904505,8.03201435,136.46,136.45,7.3286]
[1726241904712,0.3601718,136.46,136.43,18.3235]
[1726241905432,0.3601718,136.46,136.44,7.3287]
[1726241906225,0.3601718,136.46,136.42,13.4087]
[1726241906402,0.3601718,136.46,136.4,18.3278]
[1726241906403,0.3601718,136.46,136.4,25.6591]
[1726241906604,0.3601718,136.46,136.39,30.0396]
[1726241906930,0.3601718,136.46,136.39,13.4104]
[1726241907111,20.3601718,136.46,136.39,13.4104]
[1726241907601,20.0,136.44,136.39,13.4104]
[1726241908222,20.0,136.44,136.38,7.3324]
[1726241908511,20.0,136.44,136.37,18.3317]
[1726241908713,20.0,136.44,136.37,25.6645]
[1726241909123,0.12549,136.43,136.35,7.3336]
[1726241909429,20.0,136.42,136.34,18.3359]
[1726241909629,0.12549,136.41,136.35,7.3339]
[1726241909932,20.0,136.42,136.38,7.3323]
[1726241910115,20.0,136.42,136.36,18.3331]
[1726241910307,20.0,136.42,136.37,7.3325]
[1726241910511,20.0,136.42,136.36,18.3331]
[1726241910710,20.0,136.42,136.38,7.3323]
[1726241911021,30.0,136.43,136.39,7.3318]
[1726241911230,30.0,136.43,136.37,7.3328]
[1726241911611,30.0,136.43,136.37,25.664]
[1726241911804,30.0,136.43,136.37,18.3315]
[1726241912130,7.3293,136.44,136.37,25.664]
[1726241912439,20.0,136.43,136.38,7.3322]
[1726241912734,27.6884718,136.46,136.38,7.332]
[1726241912938,20.12549,136.43,136.35,7.3336]
[1726241913238,20.0,136.43,136.37,7.3328]
[1726241913426,20.0,136.43,136.36,25.6666]
[1726241913806,20.12549,136.39,136.32,25.6736]
[1726241914009,20.12549,136.39,136.32,18.3384]
[1726241914310,20.0,136.37,136.3,13.5417]
[1726241914519,20.0,136.37,136.3,6.205]
[1726241914834,20.0,136.37,136.31,7.3358]
[1726241915140,20.25098,136.39,136.31,18.34]
[1726241915363,7.67755726,136.36,136.3,7.3366]
[1726241915519,20.0,136.35,136.29,7.3371]
[1726241915926,7.64807923,136.34,136.3,7.3366]
[1726241916144,7.64807923,136.34,136.28,18.3438]
[1726241916333,20.0,136.33,136.28,18.3438]
[1726241916656,20.0,136.33,136.28,25.6815]
[1726241916948,20.0,136.33,136.28,18.3438]
[1726241917445,20.0,136.31,136.26,0.142476]
[1726241918023,20.0,136.31,136.26,7.481276]
[1726241918223,20.0,136.31,136.26,0.142476]
[1726241918653,20.0,136.29,136.26,7.481276]
[1726241919631,20.0,136.29,136.26,0.142476]
[1726241920457,20.0,136.27,136.26,0.142476]
[1726241921341,50.12549,136.27,136.26,0.142476]
[1726241921854,50.12549,136.27,136.18,18.8605478]
[1726241921855,16.13528,136.26,136.18,18.8605478]
[1726241922154,20.0,136.25,136.18,18.8605478]
[1726241922356,50.0,136.23,136.18,0.5026478]
[1726241922656,50.0,136.22,136.18,0.5026478]
[1726241923030,50.0,136.22,136.18,7.8458478]
[1726241923254,50.0,136.22,136.18,0.5026478]
[1726241924756,0.25098,136.21,136.18,0.5026478]
[1726241924937,20.0,136.2,136.18,0.5026478]
[1726241925147,0.12549,136.19,136.18,0.5026478]
[1726241925347,0.12549,136.19,136.12,7.3459]
[1726241925641,0.12549,136.19,136.11,18.3671]
[1726241925945,0.12549,136.19,136.12,7.3463]
[1726241926148,0.12549,136.19,136.1,0.5026478]
[1726241926149,27.59518,136.17,136.1,0.5026478]
[1726241926336,20.25098,136.17,136.1,7.3499478]
[1726241926659,20.12549,136.17,136.1,7.3499478]
[1726241927156,27.46929,136.17,136.1,0.0026478]
[1726241927355,20.12549,136.15,136.1,0.0026478]
[1726241927555,20.0,136.15,136.1,7.3496478]
[1726241928059,20.0,136.15,136.1,0.0026478]
[1726241928530,20.0,136.15,136.1,7.3501478]
[1726241928730,20.0,136.15,136.1,0.0026478]
[1726241929353,30.0,136.14,136.1,0.0026478]
[1726241929670,30.0,136.14,136.1,18.3706478]
[1726241929831,7.67111303,136.18,136.11,7.3469]
[1726241930028,7.67111303,136.18,136.12,7.3463]
[1726241930264,7.67111303,136.18,136.12,18.3653]
[1726241930443,7.67111303,136.18,136.14,7.3453]
[1726241930645,57.67111303,136.18,136.1,0.0026478]
[1726241930831,57.67111303,136.18,136.1,7.3500478]
[1726241931036,7.67111303,136.18,136.1,7.3500478]
[1726241931232,57.67111303,136.18,136.11,7.3465]
[1726241931454,7.67111303,136.18,136.11,7.3465]
[1726241931659,50.0,136.15,136.1,0.0026478]
[1726241931954,50.0,136.14,136.1,0.0026478]
[1726241932159,20.0,136.13,136.1,0.0026478]
[1726241932370,20.0,136.13,136.02,37.2593478]
[1726241932371,20.0,136.09,136.02,18.8812478]
[1726241932540,20.0,136.09,136.05,18.3755]
[1726241932866,20.0,136.12,136.05,18.3755]
[1726241933062,20.0,136.1,136.03,7.3513]
[1726241933359,0.12549,136.09,136.01,32.7645478]
[1726241933560,0.12549,136.11,136.01,32.7645478]
[1726241933752,0.12549,136.11,136.06,7.3496]
[1726241933943,30.0,136.09,136.03,18.3769]
[1726241934263,30.0,136.09,136.05,7.3497]
[1726241935159,20.25098,136.11,136.03,18.3769]
[1726241935475,20.25098,136.08,136.0,25.7347]
[1726241935641,50.12549,136.08,135.99,6.2868]
[1726241935838,50.0,136.08,135.99,6.2868]
[1726241936152,20.0,136.11,135.99,6.2868]
[1726241936360,0.25098,136.1,136.03,7.3508]
[1726241936665,0.25098,136.1,135.99,6.2868]
[1726241936666,20.0,136.09,136.04,18.3759]
[1726241936842,20.0,136.09,136.06,7.3495]
[1726241937041,20.0,136.09,136.05,7.3502]
[1726241937244,20.0,136.09,136.04,18.3759]
[1726241937463,20.0,136.09,136.04,25.7266]
[1726241937762,20.0,136.09,136.05,7.3501]
[1726241938349,20.0,136.09,136.04,18.3759]
[1726241939061,20.0,136.09,136.04,25.7266]
[1726241939269,20.0,136.07,136.0,18.3811]
[1726241939443,30.0,136.06,136.0,25.734]
[1726241939633,30.0,136.06,136.0,18.3811]
[1726241939839,30.0,136.06,136.03,7.3512]
[1726241940061,30.0,136.06,136.03,18.3779]
[1726241940237,7.66322267,136.1,136.03,18.3779]
[1726241940438,7.66322267,136.1,136.05,7.3502]
[1726241940849,7.66322267,136.1,136.03,18.3779]
[1726241941501,7.66322267,136.1,136.05,18.3746]
[1726241941668,7.66322267,136.1,136.09,7.348]
[1726241941878,15.0941,136.16,136.04,20.0]
[1726241942163,7.66866771,136.13,136.06,18.3738]
[1726241942367,22.4388,136.16,136.07,7.3491]
[1726241942570,7.66120996,136.12,136.07,7.3491]
[1726241942868,20.0,136.14,136.06,25.7233]
[1726241943241,20.0,136.11,136.06,18.3738]
[1726241943453,20.0,136.11,136.03,6.1387]
[1726241943653,20.0,136.11,136.05,7.3497]
[1726241944063,20.0,136.11,136.04,18.3758]
[1726241944575,20.0,136.11,136.06,7.3496]
[1726241944864,20.0,136.11,136.07,7.3491]
[1726241945078,20.0,136.11,136.06,18.3734]
[1726241945246,20.0,136.11,136.01,7.3519]
[1726241945247,6.22229,136.1,136.01,7.3519]
[1726241945577,24.027864,136.08,135.99,25.7352]
[1726241945750,20.0,136.07,135.99,18.3823]
[1726241946081,7.47549,136.06,135.96,6.0041]
[1726241946239,20.0,136.05,135.97,7.354]
[1726241946444,30.0,136.04,135.95,34.9088]
[1726241947042,30.0,136.04,135.99,7.3534]
[1726241947246,0.12549,136.06,135.99,7.3534]
[1726241947748,20.0,136.05,135.99,7.3534]
[1726241947952,0.12549,136.06,135.99,7.3534]
[1726241948162,20.0,136.07,136.0,7.3528]
[1726241948369,20.0,136.08,136.01,7.3523]
[1726241948545,20.0,136.08,136.02,7.3517]
[1726241948740,20.0,136.08,136.01,7.3523]
[1726241949366,27.349,136.08,135.99,25.7358]
[1726241949747,65.8028,136.09,135.93,0.5026478]
[1726241949748,79.817984,136.05,135.93,0.5026478]
[1726241949947,20.0,136.0,135.94,7.3561]
[1726241950146,20.0,136.0,135.93,18.8936478]
[1726241950383,20.0,136.0,135.95,18.388]
[1726241950672,20.0,136.02,135.96,7.3549]
[1726241950972,20.0,136.02,135.97,7.3544]
[1726241951373,20.0,136.02,135.96,7.355]
[1726241951586,20.0,136.02,135.95,18.388]
[1726241951873,20.0,136.02,135.96,7.3546]
[1726241952067,20.0,136.02,135.97,18.3854]
[1726241952271,6.0411,136.05,135.98,7.3535]
[1726241952574,6.0411,136.05,135.98,6.3538]
[1726241952792,0.12549,136.04,135.94,18.3901]
[1726241953461,7.67197876,136.03,135.95,7.3552]
[1726241953778,20.0,136.02,135.95,7.3552]
[1726241954861,27.352,136.02,135.94,25.7461]
[1726241955065,0.12549,136.01,135.93,0.5026478]
[1726241955266,20.12549,135.99,135.93,0.5026478]
[1726241955570,20.0,135.97,135.93,0.5026478]
[1726241956775,30.0,135.98,135.94,7.356]
[1726241956986,30.0,135.98,135.95,7.3555]
[1726241957169,30.0,135.98,135.94,18.3895]
[1726241957363,30.0,135.98,135.94,25.7454]
[1726241957776,30.0,135.98,135.95,7.3555]
[1726241958083,20.0,135.99,135.94,18.3895]
[1726241958492,6.4933,136.02,135.96,18.3869]
[1726241958681,6.4933,136.02,135.93,0.5026478]
[1726241958682,7.67197876,136.03,135.98,23.776884]
[1726241958875,7.67197876,136.03,136.02,7.3518]
[1726241959066,16.57626646,136.1,136.03,25.7284]
[1726241959393,7.66511705,136.09,136.03,25.7288]
[1726241959682,15.01321705,136.09,136.0,25.7349]
[1726241959887,7.66511705,136.09,136.01,7.3522]
[1726241960099,7.66511705,136.09,136.01,7.3523]
[1726241960465,20.0,136.08,136.0,18.3821]
[1726241960690,20.0,136.08,136.01,7.3523]
[1726241961103,20.0,136.08,136.0,25.7349]
[1726241961476,20.0,136.08,136.01,7.3522]
[1726241961896,20.0,136.08,136.0,18.3821]
[1726241962193,20.0,136.08,136.02,7.3517]
[1726241962377,20.0,136.08,136.03,7.3512]
[1726241963073,7.66511705,136.09,136.04,18.3761]
[1726241963274,7.66511705,136.09,136.05,7.3501]
[1726241963468,7.66511705,136.09,136.04,7.3507]
[1726241963669,7.66511705,136.09,136.06,18.3741]
[1726241963874,7.3442,136.17,136.04,0.25098]
[1726241964070,22.0931,136.18,136.1,7.3471]
[1726241964071,29.4367,136.18,136.1,7.3471]
[1726241966275,0.5026478,136.22,136.21,9.06010584]
[1726241967172,0.5026478,136.22,136.21,9.05980896]
[1726241967386,0.5026478,136.22,136.21,7.59258]
[1726241967595,0.5026478,136.3,136.21,6.26048]
[1726241967776,0.5026478,136.3,136.24,0.25098]
[1726241967976,0.5026478,136.3,136.29,7.3372]
[1726241969190,0.5026478,136.3,136.28,18.3433]
[1726241969389,0.5026478,136.3,136.29,7.3372]
[1726241970588,0.0026478,136.3,136.29,7.3372]
[1726241970793,0.0026478,136.3,136.29,8.72427643]
[1726241971299,0.0026478,136.3,136.29,7.3372]
[1726241973206,0.0026478,136.3,136.28,18.3433]
[1726241973401,0.0026478,136.3,136.26,7.3388]
[1726241974211,0.0026478,136.3,136.27,7.3383]
[1726241975289,0.0026478,136.3,136.28,0.61875515]
[1726241975493,0.0026478,136.3,136.29,7.3372]
[1726241979210,0.0026478,136.3,136.27,18.3448]
[1726241979389,0.0026478,136.3,136.28,7.3373]
[1726241979591,0.0026478,136.3,136.27,18.3448]
[1726241980089,0.0026478,136.3,136.29,7.3372]
[1726241980398,0.0026478,136.3,136.28,7.3378]
[1726241980898,0.0026478,136.3,136.25,7.3389]
[1726241981204,0.0026478,136.3,136.26,7.3388]
[1726241981407,0.0026478,136.3,136.26,25.6852]
[1726241982315,0.0026478,136.3,136.26,18.3464]
[1726241982710,0.0026478,136.3,136.25,7.3393]
[1726241983095,0.0026478,136.3,136.23,18.3506]
[1726241983695,20.0,136.29,136.23,18.3506]
[1726241984123,27.3373,136.29,136.21,7.3415]
[1726241984500,0.12549,136.28,136.2,18.3545]
[1726241984698,43.776884,136.27,136.17,18.3587]
[1726241984903,43.776884,136.27,136.18,7.3431]
[1726241984904,20.0,136.25,136.18,7.3431]
[1726241985101,20.0,136.25,136.19,7.3425]
[1726241985324,20.0,136.25,136.18,7.3427]
[1726241985628,20.0,136.27,136.21,7.3414]
[1726241985826,20.0,136.27,136.21,7.3411]
[1726241986508,20.0,136.27,136.22,7.3407]
[1726241986710,20.0,136.27,136.23,7.3403]
[1726241986916,20.0,136.27,136.23,7.3405]
[1726241987320,20.0,136.27,136.22,7.3409]
[1726241988014,20.0,136.27,136.21,25.6947]
[1726241988215,20.0,136.27,136.21,18.3532]
[1726241988413,20.0,136.27,136.21,25.6947]
[1726241988630,1.28068892,136.26,136.18,18.3576]
[1726241988830,1.28068892,136.26,136.2,7.3421]
[1726241989040,13.58539,136.25,136.16,7.3438]
[1726241989340,13.58539,136.25,136.17,7.3437]
[1726241989341,50.0,136.24,136.17,7.3437]
[1726241989523,50.0,136.24,136.18,7.343]
[1726241990210,50.0,136.24,136.18,7.3431]
[1726241990418,50.0,136.24,136.17,25.7021]
[1726241990656,20.0,136.22,136.14,18.3632]
[1726241991148,20.0,136.22,136.19,7.3425]
[1726241991447,20.0,136.22,136.18,25.6995]
[1726241991642,20.0,136.22,136.19,7.3425]
[1726241991944,30.0,136.24,136.18,18.3568]
[1726241992132,6.1203,136.25,136.18,18.3568]
[1726241992334,16.95163193,136.26,136.22,7.341]
[1726241992540,8.94378849,136.26,136.22,18.3516]
[1726241992716,7.66305656,136.26,136.23,7.3404]
[1726241992919,6.3342,136.29,136.23,7.3404]
[1726241993147,15.3953,136.3,136.25,7.3393]
[1726241993148,24.34481186,136.3,136.25,7.3393]
[1726241993445,15.3953,136.3,136.25,7.3393]
[1726241993744,15.3953,136.3,136.22,7.3408]
[1726241993745,22.7322,136.3,136.22,7.3408]
[1726241994064,7.3377,136.29,136.2,25.6961]
[1726241994243,20.0,136.28,136.21,7.3414]
[1726241994416,20.0,136.29,136.22,7.3409]
[1726241994625,0.12549,136.28,136.2,25.6965]
[1726241994817,7.3385,136.27,136.2,18.3544]
[1726241995018,0.12549,136.28,136.2,25.6964]
[1726241995334,20.0,136.29,136.2,18.3544]
[1726241995541,15.3953,136.3,136.22,18.3516]
[1726241995731,15.3953,136.3,136.22,25.6923]
[1726241995932,15.3953,136.3,136.23,7.3405]
[1726241996521,15.3953,136.3,136.22,18.3516]
[1726241996722,20.0,136.29,136.23,7.34]
[1726241996931,20.0,136.29,136.22,25.6922]
[1726241997835,20.0,136.29,136.22,18.3516]
[1726241998043,0.12549,136.28,136.22,18.3516]
[1726241998437,0.12549,136.28,136.22,25.6926]
[1726241998650,0.12549,136.28,136.19,18.356]
[1726241999342,20.0,136.27,136.2,7.3417]
[1726241999551,20.0,136.27,136.19,18.356]
[1726241999552,20.0,136.27,136.21,7.3415]
[1726242000051,20.12549,136.28,136.21,7.3415]
[1726242000254,7.3374,136.29,136.23,7.3404]
[1726242000255,20.0,136.29,136.23,7.3404]
[1726242000447,20.0,136.29,136.21,18.3532]
[1726242000758,20.0,136.29,136.22,7.3409]
[1726242001057,20.0,136.24,136.18,7.343]
[1726242001233,20.0,136.24,136.18,18.3571]
[1726242001436,1.28101244,136.23,136.18,18.3571]
[1726242001847,1.28101244,136.23,136.18,25.7001]
[1726242002152,7.3422,136.2,136.14,0.2339908]
[1726242002358,0.12549,136.2,136.14,18.5966908]
[1726242002527,20.0,136.21,136.14,0.2339908]
[1726242002728,30.0,136.22,136.18,25.7002]
[1726242003065,22.9086,136.26,136.14,0.2339908]
[1726242003066,22.9086,136.26,136.24,7.3398]
[1726242003233,30.0,136.25,136.22,8.58040641]
[1726242003552,24.1892253,136.26,136.21,18.3534]
[1726242003859,24.1892253,136.26,136.19,0.12549]
[1726242004354,20.0,136.25,136.2,7.342]
[1726242005465,1.28058995,136.26,136.21,7.3415]
[1726242005970,7.67162427,136.29,136.23,7.3404]
[1726242006260,8.95198984,136.29,136.23,7.3404]
[1726242006639,8.95198984,136.29,136.21,7.59208]
[1726242007150,8.95198984,136.29,136.22,7.341]
[1726242007458,20.0,136.28,136.2,25.6968]
[1726242008368,20.0,136.28,136.22,7.341]
[1726242008542,20.0,136.28,136.2,18.3549]
[1726242008859,20.0,136.28,136.2,25.6965]
[1726242010143,20.0,136.28,136.21,7.3415]
[1726242010465,20.0,136.28,136.22,7.3407]
[1726242010930,20.0,136.28,136.22,7.341]
[1726242011138,20.0,136.28,136.2,18.3549]
[1726242011356,20.0,136.28,136.22,7.341]
[1726242012643,8.95198984,136.29,136.22,18.3517]
[1726242012863,6.3178,136.3,136.24,7.3399]
[1726242013184,7.59799012,136.3,136.19,59.00616467]
[1726242013375,7.3382,136.28,136.2,7.342]
[1726242013554,7.3373,136.29,136.2,7.342]
[1726242014082,7.59799012,136.3,136.19,18.3559]
[1726242014372,20.0,136.24,136.18,7.343]
[1726242014563,20.0,136.24,136.18,18.3573]
[1726242014772,20.0,136.28,136.2,18.3545]
[1726242015289,20.0,136.29,136.2,18.3545]
[1726242015977,20.0,136.29,136.23,7.3404]
[1726242016474,27.3374,136.29,136.2,25.6965]
[1726242016683,20.0,136.29,136.2,18.3545]
[1726242016848,20.0,136.29,136.23,7.3402]
[1726242017169,6.3178,136.3,136.23,7.3402]
[1726242017349,6.3178,136.3,136.22,18.3519]
[1726242017548,13.6549,136.3,136.22,18.3519]
[1726242018053,13.6546,136.3,136.22,25.6925]
[1726242018453,20.0,136.29,136.23,7.3404]
[1726242018967,20.0,136.29,136.22,25.6928]
[1726242019674,20.0,136.29,136.22,18.3519]
[1726242020176,20.0,136.29,136.22,25.6928]
[1726242020378,20.0,136.29,136.22,18.3519]
[1726242021256,20.0,136.29,136.23,7.3404]
[1726242021685,7.87508819,136.32,136.24,1.4664209]
[1726242021859,0.2057398,136.32,136.27,7.3378]
[1726242022065,7.5414398,136.32,136.2,68.35606467]
[1726242022260,7.3377,136.29,136.2,16.6918]
[1726242022468,8.61656076,136.31,136.22,7.3406]
[1726242022656,1.28026076,136.31,136.24,7.3394]
[1726242022981,20.2057398,136.32,136.23,1.46738596]
[1726242023186,0.2057398,136.32,136.2,65.08606467]
[1726242023484,0.2057398,136.32,136.28,7.3374]
[1726242023689,0.2057398,136.32,136.28,7.3377]
[1726242023979,0.2057398,136.32,136.28,7.3373]
[1726242024292,0.2057398,136.32,136.29,8.8032655]
[1726242024459,0.2057398,136.32,136.3,7.3366]
[1726242025070,0.2057398,136.32,136.31,7.3362]
[1726242027181,0.1454704,136.39,136.32,7.3352]
[1726242027486,0.1454704,136.39,136.32,7.3355]
[1726242027681,0.1454704,136.39,136.33,7.335]
[1726242027914,0.1454704,136.39,136.34,18.3357]
[1726242028501,0.1454704,136.39,136.37,7.3329]
[1726242028679,0.1454704,136.39,136.38,7.3324]
[1726242029281,0.1454704,136.39,136.36,18.3329]
[1726242029581,0.1454704,136.39,136.38,7.3324]
[1726242030580,0.1454704,136.39,136.37,7.3328]
[1726242030903,0.1454704,136.39,136.36,25.6663]
[1726242031396,0.1454704,136.39,136.36,18.3329]
[1726242031631,0.1454704,136.39,136.36,25.6663]
[1726242031777,0.1454704,136.39,136.37,7.3329]
[1726242032199,0.1454704,136.39,136.38,8.79774325]
[1726242032503,0.1454704,136.39,136.38,7.3324]
[1726242033379,0.1454704,136.39,136.38,43.58634782]
[1726242033584,0.1454704,136.39,136.38,45.0519325]
[1726242033999,0.1454704,136.39,136.38,7.3324]
[1726242036099,0.1454704,136.39,136.36,18.3329]
[1726242036100,0.1454704,136.39,136.37,7.3329]
[1726242036403,0.1454704,136.39,136.36,25.6663]
[1726242036707,0.1454704,136.39,136.37,7.3329]
[1726242037403,0.1454704,136.39,136.38,7.3324]
[1726242038903,0.4397306,136.46,136.45,7.3286]
[1726242040715,0.4397306,136.46,136.45,33.9608]
[1726242042425,0.4397306,136.53,136.52,7.3249]
[1726242042783,0.4397306,136.53,136.51,18.3127]
[1726242042990,0.4397306,136.53,136.51,25.638]
[1726242043312,0.4397306,136.53,136.51,18.3127]
[1726242043696,0.4397306,136.53,136.52,8.2955467]
[1726242044182,0.4397306,136.53,136.52,7.3249]
[1726242046318,0.4397306,136.53,136.52,8.78919602]
[1726242046648,0.4397306,136.53,136.52,8.78918698]
[1726242046816,0.4397306,136.53,136.52,7.3249]
[1726242047889,0.4397306,136.53,136.52,27.3249]
[1726242049322,0.4397306,136.53,136.52,92.21626088]
[1726242049629,3.06e-05,136.53,136.52,92.21626088]
[1726242051210,0.4397306,136.6,136.59,25.624]
[1726242052619,29.79553082,136.67,136.59,25.624]
[1726242052620,20.0,136.66,136.6,7.3205]
[1726242052818,0.4538317,136.62,136.6,7.3205]
[1726242053531,0.4538317,136.62,136.61,7.3201]
[1726242054215,0.4538317,136.62,136.61,8.78356333]
[1726242054416,0.4538317,136.62,136.61,7.3201]
[1726242055331,0.4538317,136.62,136.6,7.3206]
[1726242055928,0.4538317,136.62,136.61,7.3201]
[1726242056635,0.4538317,136.62,136.6,7.3205]
[1726242057120,0.4538317,136.62,136.61,7.3201]
[1726242059425,0.4538317,136.62,136.59,18.3029]
[1726242060630,0.4538317,136.62,136.61,7.3201]
[1726242060926,0.4538317,136.62,136.61,8.78359215]
[1726242061129,0.4538317,136.62,136.61,8.78359255]
[1726242061317,0.4538317,136.62,136.61,7.3201]
[1726242063829,0.4538317,136.62,136.5,3.0644]
[1726242064031,15.074,136.59,136.46,6.5128]
[1726242064212,20.0,136.58,136.5,18.3144]
[1726242064807,20.0,136.58,136.51,7.3253]
[1726242065722,20.0,136.58,136.52,7.3247]
[1726242065927,20.0,136.58,136.5,25.6399]
[1726242066568,20.0,136.58,136.52,7.3247]
[1726242067155,15.074,136.59,136.49,36.08159754]
[1726242067356,15.074,136.59,136.52,7.3243]
[1726242067647,27.3218,136.58,136.46,6.5128]
[1726242067847,20.0,136.56,136.49,7.3264]
[1726242068047,20.0,136.56,136.48,18.3169]
[1726242068224,7.3238,136.55,136.47,7.3274]
[1726242068424,20.0,136.55,136.48,7.327]
[1726242068852,20.0,136.55,136.48,25.6445]
[1726242069225,20.0,136.55,136.49,7.3264]
[1726242069444,7.3223,136.57,136.49,7.3264]
[1726242069956,20.2122931,136.58,136.49,7.3264]
[1726242070244,20.0,136.56,136.49,7.3264]
[1726242070756,20.0,136.56,136.48,18.3176]
[1726242070921,20.0,136.56,136.5,7.3259]
[1726242071125,20.0,136.56,136.49,7.3264]
[1726242071455,7.3234,136.55,136.48,18.3176]